[Event "1st FIDE Olympiad DIS 2023"]
[Site "Belgrade"]
[Date "2023.02.01"]
[Round "3.17"]
[White "Shashikant, Kutwal"]
[Black "Gruenfeld, Yehuda"]
[Result "1-0"]
[ECO "B90"]
[WhiteElo "2182"]
[BlackElo "2414"]
[Annotator "TA"]
[PlyCount "116"]
[EventDate "2023.01.30"]
[EventType "team-tourn"]
[EventCountry "SRB"]
[SourceTitle "playchess.com"]
[Source "ChessBase"]
[SourceQuality "1"]
[WhiteTeam "India"]
[BlackTeam "Israel"]
[WhiteTeamCountry "IND"]
[BlackTeamCountry "ISR"]
[TimeControl "40/5400+30:1800+30"]

{[%evp 17,116,10,14,0,14,0,0,0,0,-10,0,0,0,-35,-43,-41,-39,-62,-60,-71,-10,-12,0,-18,-16,-59,-56,-51,-41,-63,-48,-41,-49,-51,-28,-101,-33,-25,-15,-151,-169,-150,0,-220,0,0,0,-51,-51,-324,-318,-299,-292,-278,-151,-155,-145,-167,-156,-152,-163,-170,-153,-247,-237,-244,-237,-427,-306,-600,-585,-601,-566,-510,-518,-472,-470,-511,-260,-708,-389,-394,-389,-559,-540,-524,-304,-435,-427,-428,-426,-503,-458,-495,-459,-660,-516,-656,-627,-511,-438]} 1. e4 {[%emt 0:00:10] Boensch,Uwe} c5 {[%emt 0:00:03]} 2. Nf3 {[%emt 0:00:08]} d6 {[%emt 0:00:03]} 3. d4 {[%emt 0:00:20]} cxd4 {[%emt 0:00:05]} 4. Nxd4 {[%emt 0:00:06]} Nf6 {[%emt 0:00:05]} 5. Nc3 {[%emt 0:00:07]} a6 {[%emt 0:00:04]} 6. Be3 {[%emt 0:00:35]} e5 {[%emt 0:00:16]} 7. Nf3 {[%emt 0:00:31]} Be7 {[%emt 0:00:16]} 8. Bc4 {[%emt 0:00:40]} O-O {[%emt 0:00:07]} 9. O-O {[%emt 0:01:31]} Nc6 {[%emt 0:00:43] is recently more successful than 9...Be6.} 10. h3 {[%emt 0:14:44] B90: Sicilian Najdorf: Unusual White 6th moves, 6 Be3 Ng4 and 6 Be3 e5.} Na5 {[%emt 0:03:32]} 11. Bb3 {[%emt 0:01:47]} h6 {[%emt 0:04:24]} 12. Qe2 {[%emt 0:07:41] The position is equal.} Nxb3 {[%emt 0:01:43]} 13. axb3 {[%emt 0:02:36]} Be6 {[%emt 0:00:22]} 14. Rfd1 {[%emt 0:00:39]} Qe8 {[%emt 0:03:28]} 15. Nd5 {[%emt 0:11:08]} Nxd5 {[%emt 0:01:43]} 16. exd5 {[%emt 0:00:10]} Bd7 {[%emt 0:14:35] [#]} 17. c4 $146 {[%emt 0:14:26]} ({Predecessor:} 17. Nd2 f5 18. f4 Bf6 19. Qf2 g5 20. fxe5 Bxe5 21. Bd4 Qg6 22. Bxe5 dxe5 23. Nc4 {0-1 Smirin,I (2640)-Wolff,P (2585) Interzonal-16 1993 (9)}) 17... f5 {[%emt 0:00:00]} 18. Bb6 {[%emt 0:00:38]} f4 {[%emt 0:00:00]} (18... Qg6 $17) 19. Nd2 $11 {[%emt 0:01:27]} Qg6 {[%emt 0:00:00]} 20. Qf3 {[%emt 0:00:41]} h5 {[%emt 0:00:00]} 21. Re1 {[%emt 0:03:23][%cal Oc4c5]} Qh6 $1 {[%emt 0:00:00]} 22. c5 {[%emt 0:07:08]} g5 $1 {[%emt 0:00:00][%cal Bg7g5,Bg5g4][%mdl 32]} 23. cxd6 {[%emt 0:03:19]} g4 {[%emt 0:00:00]} (23... Bxd6 $5 {[%cal Rg5g4]} 24. Qc3 g4 $15) 24. Qd1 {[%emt 0:10:54]} (24. hxg4 $2 hxg4 25. Qc3 Bxd6 $19) 24... Bxd6 {[%emt 0:00:05]} (24... gxh3 $2 25. dxe7 Rfe8 26. Bd8 $18 (26. Rxe5 Qg7 $14)) 25. h4 {[%emt 0:01:07]} Rae8 {[%emt 0:07:47]} (25... Bb4 26. Ba5 Bd6 27. Ne4 $11) (25... Rac8 $5 {[%cal Rd6b8]}) 26. Rc1 {[%emt 0:04:24]} (26. Ne4 $11) 26... Bf5 {[%emt 0:04:49]} (26... g3 $17 27. fxg3 Bg4) 27. Nc4 $15 {[%emt 0:07:46]} Bb4 $36 {[%emt 0:01:58][%mdl 2048] ...e4 is the strong threat. Black is pushing. This pair of bishops is nice.} 28. Rf1 {[%emt 0:01:12]} (28. Re2 $1 $11) 28... Rf7 $17 {[%emt 0:02:19]} 29. d6 {[%emt 0:00:32]} Bd7 {[%emt 0:09:09]} ({Black should try} 29... Qe6 $17 30. Bc7 Bc5) 30. Qd5 $2 {[%emt 0:00:44]} (30. Ba5 $1 $11 {and White has nothing to worry.} Bxa5 31. Nxa5) 30... Qf6 $2 {[%emt 0:02:27]} (30... Bc6 $19 31. d7 Bxd7 32. Nxe5 Rxe5 33. Qxe5 Qxb6) 31. Bc7 $11 {[%emt 0:01:29]} Re6 {[%emt 0:18:32] Hoping for ...g3.} 32. Nb6 {[%emt 0:00:51]} (32. Qxb7 $11 Bc5 33. Qd5 (33. Qxa6 $2 g3 $19)) 32... Bc6 $15 {[%emt 0:01:35]} (32... Bxd6 33. Nxd7 (33. Qxb7 $2 Bb5 $19) 33... Rxd7 34. Bxd6 (34. Qxb7 Kg7 $15) 34... Rdxd6 35. Rc8+ (35. Qxb7 Rd8 $11) 35... Kh7 36. Qxb7+ Re7 37. Qb8 $11) 33. Rxc6 {[%emt 0:00:37][%mdl 8192] White does not recover from this.} (33. d7 $1 $15 Bxd5 34. Nxd5 Rxd7 35. Nxf6+ Rxf6 36. Bxe5) 33... bxc6 $19 {[%emt 0:00:06]} 34. Qxc6 {[%emt 0:00:27]} Bxd6 {[%emt 0:01:19]} (34... Qxh4 35. Qa8+ Kg7 36. Bd8 $16) 35. Nd5 {[%emt 0:00:09]} Qh6 {[%emt 0:02:23]} (35... Qxh4 $19 {[%cal Og4g3] aiming for ...g3!} 36. Bxd6 Qd8) 36. Bxd6 $17 {[%emt 0:00:35]} Rxd6 {[%emt 0:00:08]} 37. Qe8+ {[%emt 0:00:33]} Kg7 $1 {[%emt 0:12:28]} 38. Qxe5+ {[%emt 0:00:11]} Kh7 $1 {[%emt 0:00:36]} 39. Re1 {[%emt 0:00:35] [#]} g3 $1 {[%emt 0:00:56]} 40. Rf1 {[%emt 0:03:23] [#]} (40. Nc3 $17 gxf2+ 41. Kxf2 Rd2+ 42. Re2 Rxe2+ 43. Nxe2) 40... Re6 $1 $19 {[%emt 0:00:59]} 41. Qd4 {[%emt 0:30:28]} Qg6 {[%emt 0:39:19]} 42. f3 $2 {[%emt 0:00:00]} (42. fxg3 Qxg3 43. Qf2 Qxf2+ 44. Rxf2) 42... Qf5 {[%emt 0:00:00]} 43. Qc4 $2 {[%emt 0:00:00]} (43. Nc3 Qe5 44. Qd3+ Kg7 45. Ne4) 43... Qe5 {[%emt 0:00:00]} 44. Nc3 {[%emt 0:00:00]} Rd7 {[%emt 0:00:00][%cal Bf7d7,Bd7d4,Bd4d3][%mdl 32]} 45. Ne4 {[%emt 0:00:00]} Kg7 {[%emt 0:00:00]} 46. Kh1 {[%emt 0:00:00]} Rd4 {[%emt 0:00:00]} 47. Qc8 {[%emt 0:00:00]} Qb5 {[%emt 0:00:00][%cal Rb5f1]} 48. Rg1 {[%emt 0:00:00]} (48. Qc7+ Kg6 49. Rg1) 48... Re7 {[%emt 0:00:00]} (48... Qxb3 49. Nc5 Qc4 50. Nxe6+ $18) 49. Ng5 {[%emt 0:00:00]} Qd7 {[%emt 0:00:00] Prevents Ne6+.} (49... Qxb3 50. Qf5 (50. Qxa6 $2 Rd1 $19) 50... Rd1 51. Qh7+ (51. Qxf4 $2 Rxg1+ {[%mdl 64] Remove Defender, Back Rank} 52. Kxg1 Re1#) 51... Kf6 52. Qh6+ Kf5 53. Nh3 (53. Qxa6 Rxg1+ {[%mdl 64] Back Rank} 54. Kxg1 Qe3+ 55. Kh1 Qe1+) (53. Qf8+ $2 Kg6 $19) 53... Rxg1+ 54. Nxg1) 50. Qc3 {[%emt 0:00:00]} (50. Qc2 $142 Rd3 51. Qc5) 50... Re3 {[%emt 0:00:00]} 51. Qc2 {[%emt 0:00:00]} Rdd3 {[%emt 0:00:55]} 52. b4 {[%emt 0:00:00]} (52. Rf1 $142) 52... Re5 {[%emt 0:03:07] Black is clearly winning.} 53. b3 {[%emt 0:00:00]} Ree3 {[%emt 0:02:45]} 54. Qb2+ {[%emt 0:00:00]} Qd4 {[%emt 0:00:18]} 55. Qc2 {[%emt 0:00:00]} Re7 {[%emt 0:00:15][%cal Od4g1] Prevents Qc7. ( -> ...Qxg1+!)} (55... Rxb3 $2 {gets mated.} 56. Qh7+ Kf6 57. Qf7+ Ke5 58. Qe6#) (55... Qxb4 $2 {perishes.} 56. Ne6+ Kf6 57. Ng5 $19) 56. Qc1 {[%emt 0:01:52]} (56. Rf1 $142 Qc3 57. Qb1) 56... Qe5 {[%emt 0:02:03] Threatens to win with ...Re3.} 57. Qc2 {[%emt 0:00:19]} Qc3 {[%emt 0:00:30]} 58. Qb1 {[%emt 0:00:21]} Re2 {[%emt 0:01:13][%mdl 32768] Weighted Error Value: White=0.75/Black=0.39. Loss on time!?} 1-0

[Event "1st FIDE Olympiad DIS 2023"]
[Site "Belgrade"]
[Date "2023.02.01"]
[Round "3.18"]
[White "Streltsov, Alexey"]
[Black "Kishan, Gangolli"]
[Result "0-1"]
[ECO "C18"]
[WhiteElo "2317"]
[BlackElo "2059"]
[Annotator "TA"]
[PlyCount "96"]
[EventDate "2023.01.30"]
[EventType "team-tourn"]
[EventCountry "SRB"]
[SourceTitle "playchess.com"]
[Source "ChessBase"]
[SourceQuality "1"]
[WhiteTeam "Israel"]
[BlackTeam "India"]
[WhiteTeamCountry "ISR"]
[BlackTeamCountry "IND"]
[TimeControl "40/5400+30:1800+30"]

{[%evp 15,96,105,103,97,95,83,111,86,58,55,63,0,103,123,116,127,117,111,120,110,131,113,125,122,89,89,95,-88,-79,-85,0,0,0,-196,-203,-196,-186,-426,-477,-575,-568,-556,-485,-553,-561,-529,-517,-1091,-1043,-12832,-12833,-12833,-12833,-12833,-12834,-12834,-12834,-12835,-12835,-12833,-301,-1809,-1732,-12838,-12839,-12837,-12837,-12842,-12843,-12844,-12844,-12845,-12845,-12845,-12846,-12846,-12847,-12847,-12847,-12850,-12850,-12850,-12850]} 1. e4 {[%emt 0:00:12] Knobel} e6 {[%emt 0:00:16]} 2. d4 {[%emt 0:00:16]} d5 {[%emt 0:00:18]} 3. Nc3 {[%emt 0:00:15]} Bb4 {[%emt 0:01:43]} 4. e5 {[%emt 0:00:13]} c5 {[%emt 0:00:32]} 5. a3 {[%emt 0:00:11]} Ba5 {[%emt 0:00:29]} 6. b4 {[%emt 0:00:19]} cxd4 {[%emt 0:00:22]} 7. Qg4 {[%emt 0:00:22]} Ne7 {[%emt 0:00:35]} 8. bxa5 {[%emt 0:00:32]} dxc3 {[%emt 0:00:23]} 9. Qxg7 {[%emt 0:00:15] C18: French: 3 Nc3 Bb4: Main line: 7 h4 and 7 Qg4.} Rg8 {[%emt 0:00:23]} 10. Qxh7 {[%emt 0:00:12]} Nbc6 {[%emt 0:00:27]} 11. h4 {[%emt 0:00:28] [#] White is better.} Qc7 $146 {[%emt 0:08:50]} ({Predecessor:} 11... Qxa5 12. Bg5 Bd7 13. Bf6 O-O-O 14. Qd3 Rde8 15. Ne2 d4 16. h5 Nb4 17. Qc4+ Nec6 18. Nxd4 {0-1 Haugen,A (2571)-Issler,C (2587) Martin Christoffel mem Gold corr 2002}) 12. f4 {[%emt 0:12:48]} Bd7 {[%emt 0:08:09]} 13. a6 {[%emt 0:18:48]} (13. Nf3 $14) 13... b6 {[%emt 0:04:00]} (13... Nd4 $1 $11) 14. Nf3 $16 {[%emt 0:14:44]} O-O-O {[%emt 0:04:21] aiming for ...Nf5.} 15. Qd3 {[%emt 0:01:21]} (15. Qxf7 Rdf8 16. Qh7 Nf5 $19) 15... d4 {[%emt 0:06:51]} 16. Rh3 {[%emt 0:20:48] Dodges Rg3} (16. Nxd4 Nxd4 17. Qxd4 Bb5 $17) 16... Nf5 {[%emt 0:09:17]} 17. Ng5 {[%emt 0:02:24]} f6 {[%emt 0:07:37]} 18. exf6 {[%emt 0:00:12][%cal Be5f6,Bf6f7][%mdl 32]} e5 {[%emt 0:00:34]} 19. f7 $1 {[%emt 0:00:25]} (19. g4 e4 20. Qd1 (20. Qxe4 $2 Rge8 $19) (20. Nxe4 Rxg4 21. h5 Nh6 $14) 20... Nxh4 21. Rxh4 Rxg5 $11) 19... Rgf8 {[%emt 0:10:11]} 20. Be2 {[%emt 0:00:16] And now g4 would win.} exf4 {[%emt 0:04:41]} 21. Bh5 $2 {[%emt 0:07:00] [#]} (21. Qe4 $1 $16 {keeps the pressure on.} Nd6 22. Qxf4) 21... Qe5+ $17 {[%emt 0:06:08]} 22. Qe4 {[%emt 0:04:23] [#]} Ne3 {[%emt 0:11:03]} (22... Qxe4+ $1 $17 23. Nxe4 Ng7 24. Nd6+ Kb8) 23. Bxe3 $1 $11 {[%emt 0:01:12]} dxe3 {[%emt 0:00:12]} 24. Rf3 $2 {[%emt 0:08:28] Black continues to play with concentration.} (24. Rh1 $1 $11 {and White is okay.} Qxe4 25. Nxe4) 24... Qxe4 $19 {[%emt 0:01:51][%mdl 64] Remove Defender} 25. Nxe4 {[%emt 0:00:06]} Nd4 $1 $40 {[%emt 0:00:56][%csl LRc2,LRf3][%mdl 128] White is in trouble.} 26. Nxc3 $2 {[%emt 0:03:00]} (26. Rb1 Nxc2+ 27. Kf1) 26... Nxc2+ {[%emt 0:01:51]} (26... Nxf3+ 27. Bxf3 Rxf7 28. Rd1 $17) 27. Kf1 {[%emt 0:00:18]} Nxa1 {[%emt 0:01:15]} 28. Rxf4 {[%emt 0:00:07]} Be6 {[%emt 0:01:23] Strongly threatening ...Nc2.} 29. g4 {[%emt 0:02:20] [#]} Bxf7 $1 {[%emt 0:02:59]} 30. Bxf7 {[%emt 0:00:11] Hoping for g5.} Rd7 {[%emt 0:01:04]} 31. Ne4 {[%emt 0:00:09]} (31. Ke2 $142 Rdxf7 32. Rxf7 Rxf7 33. Kxe3) 31... Rfxf7 {[%emt 0:01:42]} (31... Rdxf7 $2 32. Nd6+ Kd7 33. Rxf7+ Rxf7+ 34. Nxf7 $18) (31... e2+ 32. Kxe2 Kb8 33. Ng5 $16) 32. Nd6+ {[%emt 0:00:08]} Rxd6 {[%emt 0:00:11]} 33. Rxf7 {[%emt 0:00:03][%mdl 4096] Endgame KRN-KR} Nc2 {[%emt 0:01:35]} 34. Re7 {[%emt 0:03:57]} Rd1+ {[%emt 0:00:41]} (34... Nxa3 35. Rxe3 Nc4 36. Re8+ Rd8 37. Re7 $17) 35. Kg2 {[%emt 0:00:09]} Rd2+ {[%emt 0:00:24]} (35... Nxa3 36. Rxe3 Nc4 37. Re7 $17) 36. Kf1 {[%emt 0:00:02]} Kd8 {[%emt 0:01:15]} ({Not} 36... Nxa3 37. Rxe3 Nc4 38. Re8+ Kc7 39. g5 $17) 37. Re5 {[%emt 0:00:47]} Rf2+ {[%emt 0:00:51]} (37... Nxa3 $2 {perishes.} 38. Rxe3 Nc4 39. Re4 $19) 38. Kg1 {[%emt 0:00:03]} Rf4 {[%emt 0:00:00] Black is clearly winning.} (38... Nxa3 39. Rxe3 Rf4 40. Rxa3 Rxg4+ 41. Kf2 $17) 39. h5 {[%emt 0:00:48]} Rxg4+ {[%emt 0:00:00]} 40. Kf1 {[%emt 0:00:02]} Rh4 {[%emt 0:01:27]} 41. Ke2 {[%emt 0:32:10]} Rh2+ {[%emt 0:01:37]} 42. Kd3 {[%emt 0:00:08]} e2 {[%emt 0:30:18]} 43. Rxe2 {[%emt 0:00:24]} Rxe2 {[%emt 0:00:15]} ({Stronger than} 43... Rxh5 44. Kxc2 Rh7 45. Rg2 $11) 44. Kxe2 {[%emt 0:00:03] KN-K3P} Ke7 {[%emt 0:00:10]} (44... Nxa3 45. h6 Nc2 46. h7 Nd4+ 47. Kd3 $18) 45. a4 {[%emt 0:00:38]} Nb4 {[%emt 0:00:17]} 46. Ke3 {[%emt 0:00:36]} Nxa6 {[%emt 0:00:14]} 47. Ke4 {[%emt 0:00:33]} Nc5+ {[%emt 0:00:43]} 48. Kf5 {[%emt 0:00:05]} Kf7 {[%emt 0:00:34] Weighted Error Value: White=0.59/Black=0.11 (very precise)} 0-1

[Event "1st FIDE Olympiad DIS 2023"]
[Site "Belgrade"]
[Date "2023.02.01"]
[Round "3.18"]
[White "Syed Ejaz Husain"]
[Black "Babula, Milan"]
[Result "1-0"]
[ECO "E91"]
[WhiteElo "1952"]
[BlackElo "2107"]
[Annotator "TA"]
[PlyCount "99"]
[EventDate "2023.01.30"]
[EventType "team-tourn"]
[EventCountry "SRB"]
[SourceTitle "playchess.com"]
[Source "ChessBase"]
[SourceQuality "1"]
[BlackTeam "Czech Republic"]
[BlackTeamCountry "CZE"]
[TimeControl "40/5400+30:1800+30"]

{[%evp 14,98,66,55,64,47,66,60,78,58,58,54,67,44,28,4,19,0,43,39,80,83,97,84,88,87,96,52,55,51,56,55,46,54,62,52,42,53,47,52,176,181,251,0,0,-14,-11,-165,387,366,404,387,408,388,403,399,396,383,402,396,449,448,445,445,442,438,491,503,539,539,667,666,663,373,728,700,818,814,783,779,759,741,5617,5616,5597,5585,1689]} 1. e4 {[%emt 0:02:15]} Nc6 {[%emt 0:00:06]} 2. Nf3 {[%emt 0:01:07]} g6 {[%emt 0:00:14]} 3. d4 {[%emt 0:02:45][%cal Bd2d4,Bd4d5][%mdl 32]} Bg7 {[%emt 0:00:04]} 4. d5 {[%emt 0:02:33]} Nb8 {[%emt 0:00:07]} 5. c4 {[%emt 0:00:40]} d6 {[%emt 0:00:04]} 6. Nc3 {[%emt 0:01:48]} Nf6 {[%emt 0:00:04]} 7. Be2 {[%emt 0:06:13]} O-O {[%emt 0:00:05]} 8. O-O {[%emt 0:00:19]} Na6 {[%emt 0:02:23][%cal Bb8a6,Ba6c5,Bc5e6][%mdl 32] E91: King's Indian: Classical: 6 Be2, unusual replies including 6...c5 and 6...Bg4.} 9. Nd4 {[%emt 0:02:34] [#]} Bd7 $146 {[%emt 0:00:49]} ({Predecessor:} 9... Nc5 10. f3 a5 11. Be3 e5 12. Nc2 Nfd7 13. b3 f5 14. Rb1 f4 15. Bf2 Qg5 16. Nb5 {½-½ Southam,D (2209)-Song,L (1876) Scarborough CC Winter End 2012 (2)}) 10. Be3 {[%emt 0:06:07]} Nc5 {[%emt 0:06:25] White is slightly better.} 11. f3 {[%emt 0:00:54]} e5 {[%emt 0:00:20]} 12. dxe6 {[%emt 0:02:06]} fxe6 {[%emt 0:02:42]} 13. Qd2 {[%emt 0:02:53] White is more active.} (13. b4 {feels hotter.} Nh5 14. g3 b6 15. f4) 13... e5 {[%emt 0:03:18]} 14. Nc2 {[%emt 0:00:52]} (14. Nb3 $5 {[%cal Rb3c5]}) 14... Ne6 {[%emt 0:00:31]} 15. Rfd1 {[%emt 0:08:44]} Rf7 {[%emt 0:10:35]} 16. b4 {[%emt 0:07:38]} b6 {[%emt 0:17:24] [#]} 17. c5 $1 {[%emt 0:05:06]} dxc5 {[%emt 0:07:05]} 18. bxc5 {[%emt 0:00:19]} Qe8 {[%emt 0:00:11]} 19. cxb6 {[%emt 0:06:31]} axb6 {[%emt 0:00:09]} 20. Bc4 {[%emt 0:01:16][%cal Oa2a4]} b5 {[%emt 0:14:58]} 21. Bb3 {[%emt 0:01:01]} c5 {[%emt 0:00:25] Prevents Nb4. White must now prevent ...c4.} 22. Bxe6 {[%emt 0:03:43][%mdl 64] Remove Defender} Bxe6 {[%emt 0:00:03]} 23. Bxc5 {[%emt 0:02:25]} Rc8 {[%emt 0:06:15]} 24. Bb4 {[%emt 0:01:27]} Bf8 {[%emt 0:06:27]} 25. Bxf8 {[%emt 0:00:33]} Qxf8 {[%emt 0:00:09]} 26. Ne3 {[%emt 0:04:00]} ({Inferior is} 26. Nxb5 Qc5+ 27. Nbd4 exd4 $17) 26... Qc5 {[%emt 0:09:00]} (26... Rd7 $1 $14 27. Ncd5 Bxd5 28. exd5 (28. Nxd5 Nxd5 29. exd5 Rc4 $14) 28... e4) 27. Rac1 $18 {[%emt 0:00:50]} Rfc7 {[%emt 0:01:23]} (27... Kg7 {might work better.} 28. Ncd5 Qa3 29. Rxc8 Bxc8 30. Nxf6 Rxf6) 28. Ne2 $2 {[%emt 0:00:56]} (28. Ncd5 $18 Qxc1 29. Nxf6+ Kf7 30. Rxc1 Rxc1+ 31. Kf2 Kxf6 32. Qd6) 28... Bc4 $11 {[%emt 0:01:26]} 29. Kh1 {[%emt 0:06:50]} Rd7 {[%emt 0:03:55][%mdl 64] Deflection} 30. Qc3 {[%emt 0:00:37]} (30. Nd5 $11 {and White is okay.} Nxd5 31. exd5) 30... b4 $4 {[%emt 0:01:12][%mdl 8192]} (30... Bxe2 $19 {and life is good for Black.} 31. Qxc5 Rxc5 32. Rxc5 Bxd1 33. Rxb5 Rd3) 31. Qxc4+ $18 {[%emt 0:00:46]} Qxc4 {[%emt 0:00:06]} 32. Nxc4 {[%emt 0:01:27]} Rxd1+ {[%emt 0:02:39]} 33. Rxd1 {[%emt 0:00:09]} Rxc4 {[%emt 0:00:06] [#]} 34. Rc1 {[%emt 0:00:41] Inhibits Rc2.} Rxc1+ {[%emt 0:00:27]} 35. Nxc1 {[%emt 0:00:07][%mdl 4096] Endgame KN-KN} Nd7 {[%emt 0:00:21]} 36. Nd3 {[%emt 0:00:16]} Kf7 {[%emt 0:00:02]} 37. Nxb4 {[%emt 0:03:47]} Ke6 {[%emt 0:00:02]} 38. Kg1 {[%emt 0:02:45]} Kd6 {[%emt 0:00:01]} 39. Nd3 {[%emt 0:00:46]} Kc6 {[%emt 0:00:04]} 40. Kf2 {[%emt 0:00:54]} Kb5 {[%emt 0:00:03]} 41. Ke3 {[%emt 0:00:40]} Ka4 {[%emt 0:01:46]} 42. Kd2 {[%emt 0:00:22]} Ka3 {[%emt 0:00:24]} 43. Nc1 {[%emt 0:00:28] aiming for Kc3.} Kb2 $2 {[%emt 0:01:33]} (43... Kb4 44. Nd3+ Kb5) 44. a4 {[%emt 0:00:21] White is clearly winning.} Nb6 {[%emt 0:00:05]} 45. Nd3+ {[%emt 0:00:56]} Kb3 {[%emt 0:00:05]} 46. Nxe5 {[%emt 0:00:35]} Nxa4 {[%emt 0:00:10]} 47. Nd7 {[%emt 0:01:06]} g5 {[%emt 0:01:16]} 48. e5 {[%emt 0:01:05][%cal Be4e5,Be5e6][%mdl 32] White threatens e6 and mate.} Nc3 {[%emt 0:00:34]} 49. Nf6 {[%emt 0:01:27]} Nb5 {[%emt 0:04:14]} 50. e6 {[%emt 0:00:38] Weighted Error Value: White=0.29 (precise) /Black=0.41} 1-0

[Event "1st FIDE Olympiad DIS 2023"]
[Site "Belgrade"]
[Date "2023.02.01"]
[Round "3.19"]
[White "Valenta, Vit Vaclav"]
[Black "Sarkar, Bappi"]
[Result "1/2-1/2"]
[ECO "B18"]
[WhiteElo "2022"]
[BlackElo "1778"]
[Annotator "TA"]
[PlyCount "83"]
[EventDate "2023.01.30"]
[EventType "team-tourn"]
[EventCountry "SRB"]
[SourceTitle "playchess.com"]
[Source "ChessBase"]
[SourceQuality "1"]
[WhiteTeam "Czech Republic"]
[BlackTeam "Bangladesh"]
[WhiteTeamCountry "CZE"]
[BlackTeamCountry "BAN"]
[TimeControl "40/5400+30:1800+30"]

{[%evp 18,83,17,17,14,0,14,18,17,5,25,13,19,16,20,18,33,33,36,31,41,20,31,10,10,10,10,6,16,14,14,14,26,18,20,16,23,16,19,8,10,10,7,10,8,10,8,10,7,0,11,0,8,0,0,-8,0,-66,-8,-8,8,-2,115,-6,8,-2,102,-8]} 1. e4 {[%emt 0:00:14]} c6 {[%emt 0:01:46]} 2. d4 {[%emt 0:00:14]} d5 {[%emt 0:00:11]} 3. Nc3 {[%emt 0:00:07]} dxe4 {[%emt 0:00:22]} 4. Nxe4 {[%emt 0:00:02]} Bf5 {[%emt 0:00:26]} 5. Ng3 {[%emt 0:00:10]} Bg6 {[%emt 0:00:23]} 6. Nf3 {[%emt 0:01:22]} Nd7 {[%emt 0:03:22]} 7. Bc4 {[%emt 0:04:11]} Ngf6 {[%emt 0:04:23]} 8. O-O {[%emt 0:01:17]} e6 {[%emt 0:02:59]} 9. Re1 {[%emt 0:03:19]} Be7 {[%emt 0:02:18]} 10. c3 {[%emt 0:02:16]} O-O {[%emt 0:03:54] B18: Classical Caro-Kann: 4...Bf5 sidelines.} 11. Bg5 {[%emt 0:01:04]} Nd5 {[%emt 0:03:36]} 12. Bxe7 {[%emt 0:01:17]} Nxe7 {[%emt 0:03:17] [#] The position is equal.} 13. Nh4 $146 {[%emt 0:04:41]} ({Predecessor:} 13. h4 h6 14. Qe2 Nf5 15. Nxf5 Bxf5 16. Qe3 Bg4 17. g3 Qf6 18. Nh2 Bh5 19. Bd3 {1-0 Lukash,N (2086)-Matveev,A (2114) Konakovo Rating 2009 (3)}) 13... Nf6 {[%emt 0:10:02]} 14. Qe2 {[%emt 0:05:24]} Qc7 {[%emt 0:11:49]} 15. Bb3 {[%emt 0:08:24]} Rad8 {[%emt 0:08:41]} 16. Rad1 {[%emt 0:02:20]} Qf4 {[%emt 0:08:22]} 17. Nxg6 {[%emt 0:04:00]} Nxg6 {[%emt 0:00:27]} 18. Bc2 {[%emt 0:02:23]} Rfe8 {[%emt 0:02:57]} 19. h3 {[%emt 0:13:44]} (19. Nh5 $5 {[%cal Rh5f4]} Qg5 20. Nxf6+ gxf6 21. Qe4 $11) 19... e5 {[%emt 0:09:43]} 20. Ne4 {[%emt 0:22:39]} Nxe4 {[%emt 0:07:32]} 21. Qxe4 {[%emt 0:00:41]} Qxe4 {[%emt 0:00:21]} 22. Rxe4 {[%emt 0:00:46]} exd4 {[%emt 0:03:38]} 23. Rdxd4 {[%emt 0:01:00][%cal Od4d7]} Kf8 {[%emt 0:00:33]} 24. Kf1 {[%emt 0:02:45]} Rxd4 {[%emt 0:01:01]} 25. Rxd4 $11 {[%emt 0:00:04][%mdl 4096] Endgame KRB-KRN} Ke7 {[%emt 0:03:18]} 26. Rb4 {[%emt 0:02:49]} b6 {[%emt 0:02:21]} 27. Ra4 {[%emt 0:01:38]} a5 {[%emt 0:00:27]} 28. b4 {[%emt 0:00:26]} axb4 {[%emt 0:01:10]} 29. cxb4 {[%emt 0:00:51]} Kd6 {[%emt 0:00:38]} 30. Ra6 {[%emt 0:02:19]} Rb8 {[%emt 0:00:59]} 31. Ra7 {[%emt 0:00:53]} Ne7 {[%emt 0:00:44]} 32. Bb3 {[%emt 0:01:01]} (32. Bxh7 $2 {too greedy.} g6 33. Ke2 Rh8 34. Bxg6 fxg6 $19) 32... f6 {[%emt 0:00:37]} 33. Ke2 {[%emt 0:02:49]} g5 {[%emt 0:01:22]} 34. g3 {[%emt 0:01:55]} h6 {[%emt 0:00:27]} 35. Kd3 {[%emt 0:00:59]} b5 {[%emt 0:01:41]} 36. f4 {[%emt 0:02:59]} Rc8 {[%emt 0:00:57]} 37. fxg5 {[%emt 0:01:00]} (37. Ke4 $11) 37... fxg5 {[%emt 0:00:03]} (37... hxg5 $15 38. a4 bxa4 39. Bxa4 Rb8) 38. Bd1 {[%emt 0:00:20]} Rc7 {[%emt 0:00:10]} 39. Ra8 {[%emt 0:01:00]} Rc8 {[%emt 0:00:01]} (39... Nd5 $11) 40. Ra7 {[%emt 0:02:44]} (40. Rxc8 $16 Nxc8 41. Ke4) 40... Rc7 {[%emt 0:01:08]} 41. Ra8 {[%emt 0:30:39]} Rc8 {[%emt 0:30:13]} (41... Nd5 $11 {keeps the balance.}) 42. Ra7 {[%emt 0:01:30] Weighted Error Value: White=0.15 (very precise) /Black=0.20 (precise)} (42. Rxc8 $16 Nxc8 43. Ke4) 1/2-1/2